fUSD/lending_fUSD_20260106
["ID","MTS","AMOUNT","RATE_DAILY","PERIOD"]
[400543494,1767708688962,-162.380719,0.0004319,65]
[400543495,1767708689032,-500.0,0.0004319,120]
[400543496,1767708689104,-500.0,0.0004319,65]
[400543497,1767708689175,-165.99337346,0.0004319,120]
[400543498,1767708689244,-151.0,0.0004319,30]
[400543499,1767708689315,-500.0,0.0004319,120]
[400543500,1767708689389,-414.0,0.0004319,30]
[400543501,1767708689463,-151.0,0.0004319,45]
[400543502,1767708689539,-429.318,0.0004319,45]
[400543503,1767708689612,-151.0,0.0004319,65]
[400543504,1767708689684,-445.202766,0.0004319,65]
[400543505,1767708689756,-455.1076597,0.0004319,120]
[400543506,1767708689827,-151.0,0.0004319,120]
[400543507,1767708689896,-702.5991064,0.0004319,30]
[400543508,1767708689968,-250.0,0.0004319,30]
[400543509,1767708690044,-250.0,0.0004319,45]
[400543510,1767708690118,-250.0,0.0004319,65]
[400543511,1767708690191,-500.0,0.0004319,30]
[400543512,1767708690264,-250.0,0.0004319,120]
[400543513,1767708690338,-250.0,0.0004319,30]
[400543514,1767708690414,-250.0,0.0004319,30]
[400543515,1767708690490,-500.0,0.0004319,45]
[400543516,1767708690566,-250.0,0.0004319,45]
[400543517,1767708690641,-500.0,0.0004319,65]
[400543518,1767708690714,-250.0,0.0004319,45]
[400543519,1767708690789,-250.0,0.0004319,65]
[400543520,1767708690863,-500.0,0.0004319,120]
[400543521,1767708690936,-250.0,0.0004319,65]
[400543522,1767708691014,-250.0,0.0004319,120]
[400543523,1767708691085,-250.0,0.0004319,120]
[400543524,1767708691156,-500.0,0.00043191,60]
[400543525,1767708691226,-500.0,0.000432,120]
[400543526,1767708691298,-500.0,0.000432,120]
[400543527,1767708691372,-500.0,0.000432,120]
[400543528,1767708691445,-500.0,0.000432,120]
[400543529,1767708691519,-500.0,0.000432,120]
[400543530,1767708691592,-500.0,0.000432,120]
[400543531,1767708691665,-500.0,0.000432,120]
[400543532,1767708691739,-500.0,0.000432,120]
[400543533,1767708691812,-500.0,0.000432,120]
[400543534,1767708691885,-500.0,0.000432,120]
[400543535,1767708691957,-500.0,0.000432,120]
[400543536,1767708692028,-500.0,0.000432,120]
[400543537,1767708692099,-551.9,0.000432,120]
[400543538,1767708692168,-203.37,0.000432,120]
[400543539,1767708692238,-151.0,0.00043219,120]
[400543540,1767708692310,-151.0,0.00043219,120]
[400543541,1767708692383,-151.0,0.00043219,120]
[400543542,1767708692455,-151.0,0.00043219,120]
[400543543,1767708692530,-151.0,0.00043219,120]
[400543544,1767708692603,-151.0,0.00043219,120]
[400543545,1767708692677,-151.0,0.00043219,120]
[400543546,1767708692748,-151.0,0.00043219,120]
[400543547,1767708692820,-151.0,0.00043219,120]
[400543548,1767708692890,-256.18893,0.00043219,120]
[400543549,1767708692961,-252.139252,0.00043219,120]
[400543550,1767708693033,-252.139252,0.00043219,120]
[400543551,1767708693107,-252.139252,0.00043219,120]
[400543552,1767708693182,-252.139252,0.00043219,120]
[400543553,1767708693256,-252.139252,0.00043219,120]
[400543554,1767708693330,-252.139252,0.00043219,120]
[400543555,1767708693406,-252.139252,0.00043219,120]
[400543556,1767708693481,-252.139252,0.00043219,120]
[400543557,1767708693556,-252.139252,0.00043219,120]
[400543558,1767708693632,-252.139252,0.00043219,120]
[400543559,1767708693708,-252.139252,0.00043219,120]
[400543560,1767708693781,-252.139251,0.00043219,120]
[400543561,1767708693854,-151.0,0.00043219,30]
[400543562,1767708694058,-151.0,0.00043219,30]
[400543563,1767708694134,-164.606244,0.00043219,120]
[400543564,1767708694206,-191.195533,0.00043219,120]
[400543565,1767708694281,-191.195533,0.00043219,120]
[400543566,1767708694356,-191.195533,0.00043219,120]
[400543567,1767708694432,-191.195533,0.00043219,120]
[400543568,1767708694506,-151.0,0.00043219,120]
[400543569,1767708694582,-222.967096,0.00043219,120]
[400543570,1767708694657,-222.967096,0.00043219,120]
[400543571,1767708694732,-222.967096,0.00043219,120]
[400543572,1767708694807,-222.967089,0.00043219,120]
[400543573,1767708694881,-155.899603,0.00043219,120]
[400543574,1767708694955,-155.899603,0.00043219,120]
[400543575,1767708695028,-155.899603,0.00043219,120]
[400543576,1767708695104,-155.89961,0.00043219,120]
[400543577,1767708695181,-151.0,0.00043219,120]
[400543578,1767708695256,-201.852989,0.00043219,120]
[400543579,1767708695334,-201.852989,0.00043219,120]
[400543580,1767708695412,-913.703244,0.00043219,120]
[400543581,1767708695490,-201.852989,0.00043219,120]
[400543582,1767708695569,-913.703244,0.00043219,120]
[400543583,1767708695647,-201.852983,0.00043219,120]
[400543584,1767708695726,-913.703244,0.00043219,120]
[400543585,1767708695799,-913.703238,0.00043219,120]
[400543586,1767708695873,-151.0,0.00043219,120]
[400543587,1767708695950,-151.0,0.00043219,120]
[400543588,1767708696027,-151.0,0.00043219,120]
[400543589,1767708696103,-151.0,0.00043219,120]
[400543590,1767708696178,-431.831993,0.00043219,120]
[400543591,1767708696251,-431.831993,0.00043219,120]
[400543592,1767708696328,-431.831993,0.00043219,120]
[400543593,1767708696405,-431.832001,0.00043219,120]
[400543594,1767708696483,-151.0,0.00043219,120]
[400543595,1767708696565,-151.0,0.00043219,120]
[400543596,1767708696640,-225.992407,0.00043219,120]
[400543597,1767708696716,-265.95046,0.00043219,120]
[400543598,1767708696793,-225.992407,0.00043219,120]
[400543599,1767708696868,-225.992407,0.00043219,120]
[400543600,1767708696947,-225.992416,0.00043219,120]
[400543601,1767708697022,-151.0,0.00043219,120]
[400543602,1767708697095,-271.216334,0.00043219,120]
[400543603,1767708697169,-2535.882568,0.00043219,120]
[400543604,1767708697241,-2535.882568,0.00043219,120]
[400543605,1767708697316,-2535.882568,0.00043219,120]
[400543606,1767708697393,-151.0,0.00043219,120]
[400543607,1767708697470,-2535.88256076,0.00043219,120]
[400543608,1767708697553,-151.0,0.00043219,120]
[400543609,1767708697628,-184.543404,0.00043219,120]
[400543610,1767708697708,-164.796381,0.00043219,120]
[400543611,1767708697784,-151.0,0.00043219,120]
[400543612,1767708697861,-151.0,0.00043219,120]
[400543613,1767708697938,-151.0,0.00043219,120]
[400543614,1767708698017,-151.0,0.00043219,120]
[400543615,1767708698095,-195.222275,0.00043219,120]
[400543616,1767708698171,-195.222275,0.00043219,120]
[400543617,1767708698250,-195.222275,0.00043219,120]
[400543618,1767708698333,-337.701497,0.00043219,120]
[400543619,1767708698414,-337.701497,0.00043219,120]
[400543620,1767708698492,-195.222283,0.00043219,120]
[400543621,1767708698568,-337.701497,0.00043219,120]
[400543622,1767708698646,-337.7015,0.00043219,120]
[400543623,1767708698720,-300.0,0.0004322,30]
[400543624,1767708698796,-666.0,0.0004322,30]
[400543625,1767708698870,-932.72227245,0.0004322,30]
[400543626,1767708698949,-300.0,0.00043222,30]
[400543627,1767708699024,-666.0,0.00043222,30]
[400543628,1767708699098,-300.0,0.00043222,30]
[400543629,1767708699172,-194.32908485,0.00043224,30]
[400543630,1767708699245,-42142.25005855,0.00043226,30]
[400543631,1767708699319,-42142.25005855,0.00043226,30]
[400543632,1767708699398,-42142.25005855,0.00043226,30]
[400543633,1767708699473,-42142.25005855,0.00043226,30]
[400543634,1767708699549,-242.83651678,0.00043226,30]
[400543635,1767708699629,-242.83651678,0.00043226,30]
[400543636,1767708699703,-191.195533,0.00043234,120]
[400543637,1767708699774,-191.195533,0.00043234,120]
[400543638,1767708699847,-191.195533,0.00043234,120]
[400543639,1767708699919,-191.195533,0.00043234,120]
[400543640,1767708699991,-191.195533,0.00043234,120]
[400543641,1767708700067,-191.195533,0.00043234,120]
[400543642,1767708700141,-191.195533,0.00043234,120]
[400543643,1767708700227,-191.195532,0.00043234,120]
[400543644,1767708700305,-235.896825,0.00043234,120]
[400543645,1767708700385,-50000.0,0.00043234,40]
[400543646,1767708700462,-50000.0,0.00043234,41]
[400543647,1767708700542,-50000.0,0.00043234,42]
[400543648,1767708700620,-50000.0,0.00043234,43]
[400543649,1767708700697,-50000.0,0.00043234,44]
[400543650,1767708700773,-50000.0,0.00043234,45]
[400543651,1767708700849,-50000.0,0.00043234,46]
[400543652,1767708700926,-50000.0,0.00043234,47]
[400543653,1767708701005,-50000.0,0.00043234,48]
[400543654,1767708701081,-50000.0,0.00043234,49]
[400543655,1767708701157,-50000.0,0.00043234,50]
[400543656,1767708701232,-50000.0,0.00043234,40]
[400543657,1767708701519,-50000.0,0.00043234,41]
[400543658,1767708701600,-50000.0,0.00043234,42]
[400543659,1767708701682,-50000.0,0.00043234,43]
[400543660,1767708701759,-50000.0,0.00043234,44]
[400543661,1767708701835,-50000.0,0.00043234,45]
[400543662,1767708701915,-50000.0,0.00043234,46]
[400543663,1767708701993,-50000.0,0.00043234,47]
[400543664,1767708702070,-50000.0,0.00043234,48]
[400543665,1767708702146,-50000.0,0.00043234,49]
[400543666,1767708702218,-319.43555286,0.00043235,31]
[400543667,1767708702307,-165.71408053,0.00043265,120]
[400543668,1767708702383,-999.0,0.00043287,120]
[400543669,1767708702457,-246.93424608,0.00043298,120]
[400543670,1767708702537,-3971429.41688234,0.000433,30]
[400543671,1767708702610,-243.65788913,0.000433,120]
[400543672,1767708702683,-1149.12182063,0.000433,120]
[400543673,1767708702756,-150.0,0.000433,120]
[400543674,1767708702828,-97582.3616054,0.00043303,30]
[400543675,1767708702900,-10000.0,0.00043329,120]
[400543676,1767708702972,-631.0,0.000434,120]
[400543677,1767708703045,-153.73,0.0004342,30]
[400543678,1767708703117,-500.0,0.00043425,30]
[400543679,1767708703190,-298499.2882,0.00043444,30]
[400543680,1767708703263,-500.0,0.00043463,30]
[400543681,1767708703342,-2606811.18216696,0.00043468,30]
[400543682,1767708703828,195.0,0.00019384,120]
[400543683,1767708703940,-1353.9,0.00041194,30]
[400543684,1767708704019,-500.0,0.00041591,60]
[400543685,1767708704093,-254.0,0.00042,30]
[400543686,1767708704169,-500.0,0.00042687,60]
[400543687,1767708704262,-663064.03549575,0.00043468,30]
[400543688,1767708704337,-500.0,0.0004349,30]
[400543689,1767708704415,-5000000.0,0.000435,120]
[400543690,1767708704490,-152.0,0.000435,120]
[400543691,1767708704563,-1378.77,0.000435,30]
[400543692,1767708704637,-23882.0,0.00043531,30]
[400543693,1767708704711,-1000.0,0.00043551,30]
[400543694,1767708704785,-1050.74200349,0.000437,120]
[400543695,1767708704858,-500.0,0.00043739,60]
[400543696,1767708704929,-500.0,0.00043739,60]
[400543697,1767708705007,-374.57,0.00043744,120]
[400543698,1767708705083,-500.0,0.00043783,60]
[400543699,1767708705156,-501.3003353,0.000438,30]
[400543700,1767708705230,-161.90254744,0.000438,120]
[400543701,1767708705305,-1030.27533141,0.000438,30]
[400543702,1767708705380,-328.12,0.000438,120]
[400543703,1767708705458,-185.57307137,0.00043835,120]
[400543704,1767708705534,-154.0,0.000439,120]
[400543705,1767708705611,-23882.0,0.00043962,30]
[400543706,1767708705682,-1000.0,0.00043999,120]
[400543707,1767708705754,-2000.0,0.00044,60]
[400543708,1767708705826,-56000.0,0.00044,120]
[400543709,1767708705900,-2416.90497441,0.00044,30]
[400543710,1767708705971,-150.0,0.00044,120]
[400543711,1767708706044,-241.21444656,0.00044,120]
[400543712,1767708706120,-400.0,0.00044,120]
[400543713,1767708706193,-253.0,0.00044,45]
[400543714,1767708706267,-404.672824,0.00044,57]
[400543715,1767708706343,-3591.844,0.000441,120]
[400543716,1767708706420,-3591.844,0.000441,120]
[400543717,1767708706496,-3591.84,0.000441,120]
[400543718,1767708706571,-3295.073,0.000441,120]
[400543719,1767708706643,-3295.073,0.000441,120]
[400543720,1767708706718,-3295.07,0.000441,120]
[400543721,1767708706797,-2008.24,0.000441,90]
[400543722,1767708706876,-2008.24,0.000441,90]
[400543723,1767708706953,-2008.24,0.000441,90]
[400543724,1767708707027,-1020.0115,0.000441,120]
[400543725,1767708707100,-200.0,0.00044169,120]
[400543726,1767708707175,-152.0,0.000442,120]
[400543727,1767708707247,-158.88378663,0.0004425,120]
[400543728,1767708707321,-1378.77,0.000443,30]
[400543729,1767708707399,-999.0,0.00044383,120]
[400543730,1767708707473,-23882.0,0.00044393,30]
[400543731,1767708707551,-1349.22096085,0.000445,120]
[400543732,1767708707765,-154.0,0.000446,120]
[400543733,1767708707846,-263.43,0.00044701,120]
[400543734,1767708707919,-1049.43,0.0004472,120]
[400543735,1767708707994,-500.0,0.00044835,60]
[400543736,1767708708066,-500.0,0.00044835,60]
[400543737,1767708708134,-500.0,0.00044879,60]
[400543738,1767708708202,-442.45806739,0.0004489,120]
[400543739,1767708708276,-891.31000896,0.000449,30]
[400543740,1767708708352,-152.0,0.000449,120]
[400543741,1767708708428,-210.0,0.0004496,30]
[400543742,1767708708503,-1000.0,0.00044999,120]
[400543743,1767708708578,-353.80953382,0.00045,30]
[400543744,1767708708651,-267.28639255,0.00045,120]
[400543745,1767708708723,-200.0,0.00045,120]
[400543746,1767708708792,-150.0,0.00045,120]
[400543747,1767708708863,-159.0,0.00045,85]
[400543748,1767708708934,-2000.0,0.00045,60]
[400543749,1767708709008,-165.0,0.00045,60]
[400543750,1767708709081,-298.88363177,0.00045,120]
[400543751,1767708709153,-200.018327,0.00045,120]
[400543752,1767708709225,-1129.46953752,0.00045,32]
[400543753,1767708709299,-6613.06122462,0.00045,120]
[400543754,1767708709375,-1212.0,0.00045,120]
[400543755,1767708709450,-183.54391508,0.00045,60]
[400543756,1767708709526,-6076.69872797,0.00045,45]
[400543757,1767708709602,-750.0,0.00045,60]
[400543758,1767708709674,-191.4783167,0.00045,120]
[400543759,1767708709744,-489.97749672,0.00045,30]
[400543760,1767708709817,-153.93344626,0.00045,120]
[400543761,1767708709887,-281.26282702,0.00045,120]
[400543762,1767708709957,-50000.0,0.00045,120]
[400543763,1767708710031,-1840.85,0.00045,120]
[400543764,1767708710103,-4148.40970941,0.00045,120]
[400543765,1767708710176,-160.0,0.00045,54]
[400543766,1767708710249,-160.0,0.00045,54]
[400543767,1767708710320,-160.0,0.00045,54]
[400543768,1767708710394,-160.0,0.00045,54]
[400543769,1767708710469,-160.0,0.00045,54]
[400543770,1767708710543,-160.0,0.00045,54]
[400543771,1767708710616,-160.0,0.00045,54]
[400543772,1767708710688,-160.0,0.00045,54]
[400543773,1767708710758,-160.0,0.00045,54]
[400543774,1767708710829,-160.0,0.00045,54]
[400543775,1767708710902,-216.4,0.00045,54]
[400543776,1767708710975,-20000.0,0.00045,120]
[400543777,1767708711047,-2016.35,0.00045,120]
[400543778,1767708711119,-458.202501,0.00045,48]
[400543779,1767708711192,-1579.49,0.00045,30]
[400543780,1767708711264,-460.99917549,0.000452,120]
[400543781,1767708711339,-154.0,0.000454,120]
[400543782,1767708711415,-238799.4305,0.00045444,30]
[400543783,1767708711493,-999.0,0.00045479,120]
[400543784,1767708711574,-2810744.48538351,0.000455,120]
[400543845,1767708846269,195.0,0.00032864,120]
[400543883,1767708894801,630.0,0.00032876,120]
[400543895,1767708912175,229.55635335,0.00032876,120]
[400543908,1767708967749,236.15,0.00032876,120]
[400543910,1767708987895,155.87206275,0.00032876,120]
[400543911,1767708990877,-195.0,0.00033419,120]
[400543912,1767708990952,-545.7,0.00035616,42]
[400543913,1767708991025,-161.07357845,0.00039461,83]
[400543914,1767708991102,-500.0,0.00039999,31]
[400543915,1767708991177,-500.0,0.00039999,31]
[400543916,1767708991254,-500.0,0.00039999,31]
[400543917,1767708991351,-500.0,0.00039999,31]
[400543918,1767708991433,-500.0,0.00039999,31]
[400543919,1767708991514,-500.0,0.00039999,31]
[400543920,1767708991597,-500.0,0.00039999,31]
[400543921,1767708991678,-500.0,0.00039999,31]
[400543922,1767708991757,-500.0,0.00039999,31]
[400543923,1767708991832,-500.0,0.00039999,31]
[400543924,1767708991909,-280.07716348,0.00039999,31]
[400543925,1767708991988,-500.0,0.00039999,31]
[400543926,1767708992066,-500.0,0.00039999,31]
[400543927,1767708992142,-500.0,0.00039999,31]
[400543928,1767708992216,-250.0,0.0004,45]
[400543929,1767708992295,-152.0,0.0004,120]
[400543930,1767708992373,-152.0,0.0004,120]
[400543931,1767708992454,-701.58,0.00040138,30]
[400543932,1767708992532,-707.51,0.00040216,30]
[400543933,1767708992611,-155.76,0.00040495,120]
[400543934,1767708992690,-155.72,0.00040495,120]
[400543935,1767708992765,-250.0,0.000405,45]
[400543936,1767708992840,-155.76,0.00040595,120]
[400543937,1767708992915,-155.72,0.00040595,120]
[400543938,1767708992992,-155.76761916,0.00040695,120]
[400543939,1767708993070,-155.72,0.00040695,120]
[400543940,1767708993145,-152.0,0.000407,120]
[400543941,1767708993221,-155.72,0.00040795,120]
[400543942,1767708993300,-152.0,0.000408,120]
[400543943,1767708993380,-155.72,0.00040895,120]
[400543944,1767708993462,-155.72,0.00040995,120]
[400543945,1767708993542,-250.0,0.00041,45]
[400543946,1767708993623,-1353.9,0.00041038,30]
[400543947,1767708993705,-1000.0,0.00041095,120]
[400543948,1767708993782,-1000.0,0.00041095,120]
[400543949,1767708993859,-1000.0,0.00041095,120]
[400543950,1767708993937,-453.30745338,0.00041095,120]
[400543951,1767708994015,-999.0,0.00041095,120]
[400543952,1767708994091,-155.72,0.00041095,120]
[400543953,1767708994166,-909.5,0.00041096,53]
[400543954,1767708994245,-155.72,0.00041195,120]
[400543955,1767708994324,-155.72,0.00041295,120]
[400543956,1767708994403,-155.82,0.00041395,120]
[400543957,1767708994483,-199.17781272,0.000415,45]
[400543958,1767708994565,-152.0,0.000415,120]
[400543959,1767708994644,-152.0,0.000416,120]
[400543960,1767708994724,-1353.9,0.00041606,30]
[400543961,1767708994803,-4159.8104,0.00041735,30]
[400543962,1767708994880,-254.0,0.00041999,30]
[400543963,1767708994957,-190.46136523,0.00041999,120]
[400543964,1767708995039,-1353.9,0.00042175,30]
[400543965,1767708995122,-999.0,0.00042191,120]
[400543966,1767708995199,-152.0,0.000422,120]
[400543967,1767708995276,-631.51040399,0.0004229,120]
[400543968,1767708995355,-631.51040399,0.00042355,120]
[400543969,1767708995433,-5000.0,0.000424,120]
[400543970,1767708995510,-152.0,0.000424,120]
[400543971,1767708995590,-631.51040399,0.0004242,120]
[400543972,1767708995668,-631.51040399,0.00042485,120]
[400543973,1767708995746,-631.51040399,0.0004255,120]
[400543974,1767708995822,-631.51040399,0.00042615,120]
[400543975,1767708995902,-631.51040399,0.0004268,120]
[400543976,1767708995981,-1353.9,0.00042743,30]
[400543977,1767708996065,-631.51040399,0.00042745,120]
[400543978,1767708996145,-631.51040399,0.0004281,120]
[400543979,1767708996223,-631.51040399,0.00042875,120]
[400543980,1767708996306,-269.69223795,0.00042904,120]
[400543981,1767708996383,-203.83641046,0.00042904,60]
[400543982,1767708996462,-251.87316765,0.00042933,120]
[400543983,1767708996542,-631.51040399,0.0004294,120]
[400543984,1767708996635,-150.0,0.00042998,120]
[400543985,1767708996715,-152.0,0.00043,120]
[400543986,1767708996794,-631.51040399,0.00043005,120]
[400543987,1767708997019,-631.51040399,0.0004307,120]
[400543988,1767708997123,-152.0,0.000431,120]
[400543989,1767708997196,-631.51040399,0.00043135,120]
[400543990,1767708997277,-150.0,0.00043233,30]
[400543991,1767708997356,-300.0,0.00043233,30]
[400543992,1767708997435,-300.0,0.00043233,30]
[400543993,1767708997516,-300.0,0.00043234,30]
[400543994,1767708997602,-300.0,0.00043234,30]
[400543996,1767708997681,-150.0,0.00043235,120]
[400543998,1767708997753,-150.0,0.00043235,120]
[400543999,1767708997832,-319.43555286,0.00043235,31]
[400544000,1767708997912,-104473.57375428,0.00043235,30]
[400544001,1767708998008,-151.0,0.00043235,120]
[400544002,1767708998087,-151.0,0.00043235,120]
[400544003,1767708998173,-151.0,0.00043235,120]
[400544004,1767708998253,-151.0,0.00043235,120]
[400544005,1767708998333,-151.0,0.00043235,120]
[400544006,1767708998418,-151.0,0.00043235,120]
[400544007,1767708998500,-151.0,0.00043235,120]
[400544008,1767708998579,-151.0,0.00043235,120]
[400544009,1767708998659,-151.0,0.00043235,120]
[400544010,1767708998736,-170.564263,0.00043235,120]
[400544011,1767708998814,-151.0,0.00043235,120]
[400544012,1767708998887,-235.896825,0.00043235,120]
[400544013,1767708998964,-156.17782,0.00043235,120]
[400544014,1767708999049,-156.17782,0.00043235,120]
[400544015,1767708999128,-156.17782,0.00043235,120]
[400544016,1767708999203,-156.17782,0.00043235,120]
[400544017,1767708999280,-156.17782,0.00043235,120]
[400544018,1767708999359,-156.17782,0.00043235,120]
[400544019,1767708999439,-156.17782,0.00043235,120]
[400544020,1767708999521,-156.17782,0.00043235,120]
[400544021,1767708999599,-156.17782,0.00043235,120]
[400544022,1767708999680,-156.17782,0.00043235,120]
[400544024,1767708999754,-156.17782,0.00043235,120]
[400544026,1767708999817,-156.17782,0.00043235,120]
[400544027,1767708999893,-156.17782,0.00043235,120]
[400544028,1767708999970,-156.17782,0.00043235,120]
[400544029,1767709000047,-156.17782,0.00043235,120]
[400544030,1767709000126,-156.17782,0.00043235,120]
[400544031,1767709000209,-156.17782,0.00043235,120]
[400544032,1767709000293,-156.17782,0.00043235,120]
[400544033,1767709000379,-156.17782,0.00043235,120]
[400544034,1767709000458,-156.177828,0.00043235,120]
[400544035,1767709000539,-151.0,0.00043235,120]
[400544036,1767709000621,-151.0,0.00043235,120]
[400544037,1767709000699,-151.0,0.00043235,120]
[400544038,1767709000776,-151.0,0.00043235,120]
[400544039,1767709000853,-151.0,0.00043235,120]
[400544040,1767709000930,-151.0,0.00043235,120]
[400544041,1767709001006,-151.0,0.00043235,120]
[400544042,1767709001084,-151.0,0.00043235,120]
[400544043,1767709001160,-151.0,0.00043235,120]
[400544044,1767709001235,-151.0,0.00043235,120]
[400544045,1767709001313,-151.0,0.00043235,120]
[400544046,1767709001390,-265.95046,0.00043235,120]
[400544047,1767709001468,-151.0,0.00043235,120]
[400544048,1767709001547,-151.0,0.00043235,120]
[400544049,1767709001635,-151.0,0.00043235,120]
[400544050,1767709001715,-151.0,0.00043235,120]
[400544051,1767709001795,-151.0,0.00043235,120]
[400544052,1767709001875,-151.0,0.00043235,120]
[400544054,1767709001954,-156.814288,0.00043235,120]
[400544055,1767709002031,-151.0,0.00043235,120]
[400544056,1767709002111,-151.0,0.00043235,120]
[400544057,1767709002190,-151.0,0.00043235,120]
[400544058,1767709002270,-184.543404,0.00043235,120]
[400544059,1767709002348,-151.0,0.00043235,120]
[400544060,1767709002429,-151.0,0.00043235,120]
[400544061,1767709002508,-151.0,0.00043235,120]
[400544062,1767709002585,-151.0,0.00043235,120]
[400544063,1767709002664,-151.0,0.00043235,120]
[400544064,1767709002742,-151.0,0.00043235,120]
[400544065,1767709002819,-151.0,0.00043235,120]
[400544066,1767709002897,-151.0,0.00043235,120]
[400544067,1767709002975,-151.0,0.00043235,120]
[400544068,1767709003052,-151.0,0.00043235,120]
[400544069,1767709003130,-271.216334,0.00043235,120]
[400544070,1767709003206,-164.796381,0.00043235,120]
[400544071,1767709003281,-151.0,0.00043235,120]
[400544072,1767709003358,-151.0,0.00043235,120]
[400544073,1767709003439,-151.0,0.00043235,120]
[400544074,1767709003516,-198.724959,0.00043235,120]
[400544075,1767709003596,-175.863763,0.00043235,120]
[400544076,1767709003677,-175.863763,0.00043235,120]
[400544077,1767709003753,-175.863763,0.00043235,120]
[400544078,1767709003834,-175.863763,0.00043235,120]
[400544079,1767709003909,-175.863763,0.00043235,120]
[400544080,1767709003987,-175.863763,0.00043235,120]
[400544081,1767709004074,-175.863763,0.00043235,120]
[400544082,1767709004150,-175.863763,0.00043235,120]
[400544083,1767709004225,-151.0,0.00043235,120]
[400544084,1767709004302,-175.863763,0.00043235,120]
[400544085,1767709004380,-151.0,0.00043235,120]
[400544086,1767709004458,-175.863763,0.00043235,120]
[400544087,1767709004715,-151.0,0.00043235,120]
[400544088,1767709004793,-175.863763,0.00043235,120]
[400544089,1767709004869,-151.0,0.00043235,120]
[400544090,1767709004942,-151.0,0.00043235,120]
[400544091,1767709005017,-175.863763,0.00043235,120]
[400544092,1767709005094,-216.964536,0.00043235,120]
[400544093,1767709005171,-175.863763,0.00043235,120]
[400544094,1767709005248,-151.0,0.00043235,120]
[400544095,1767709005324,-175.863763,0.00043235,120]
[400544097,1767709005400,-151.0,0.00043235,120]
[400544098,1767709005478,-175.863763,0.00043235,120]
[400544099,1767709005559,-151.0,0.00043235,120]
[400544100,1767709005638,-151.0,0.00043235,120]
[400544101,1767709005717,-175.863763,0.00043235,120]
[400544102,1767709005795,-151.0,0.00043235,120]
[400544103,1767709005873,-175.863763,0.00043235,120]
[400544104,1767709005953,-151.0,0.00043235,120]
[400544105,1767709006029,-175.863763,0.00043235,120]
[400544106,1767709006104,-175.863763,0.00043235,120]
[400544107,1767709006178,-175.863767,0.00043235,120]
[400544108,1767709006253,-229.198652,0.00043235,120]
[400544109,1767709006332,-151.0,0.00043235,120]
[400544110,1767709006411,-151.0,0.00043235,120]
[400544111,1767709006490,-151.0,0.00043235,120]
[400544112,1767709006570,-151.0,0.00043235,120]
[400544113,1767709006651,-151.0,0.00043235,120]
[400544114,1767709006731,-151.0,0.00043235,120]
[400544115,1767709006810,-151.0,0.00043235,120]
[400544116,1767709006885,-275.402496,0.00043235,120]
[400544117,1767709006960,-151.0,0.00043235,120]
[400544118,1767709007038,-151.0,0.00043235,120]
[400544119,1767709007115,-151.0,0.00043235,120]
[400544120,1767709007191,-151.0,0.00043235,120]